bitfinex-derivatives/quotes_BTCF0:USTF0_20241218
["timestamp","ask_amount","ask_price","bid_price","bid_amount"]
[1734510601574,0.17516536,103930.0,103920.0,0.23043102]
[1734510601868,0.53596536,103930.0,103920.0,0.40303267]
[1734510602065,0.53596536,103930.0,103920.0,0.21469879]
[1734510602371,0.69726971,103930.0,103920.0,0.21469879]
[1734510602966,0.69726971,103930.0,103920.0,0.04209714]
[1734510602967,1.09944007,103930.0,103920.0,0.04209714]
[1734510603176,1.21397921,103930.0,103920.0,0.04209714]
[1734510603478,0.048119,103920.0,103910.0,0.17454512]
[1734510603675,0.66550823,103920.0,103910.0,0.21664968]
[1734510604075,0.66550823,103920.0,103910.0,0.21520621]
[1734510604274,0.66550823,103920.0,103910.0,0.21470621]
[1734510605278,0.66550823,103920.0,103910.0,0.21520621]
[1734510605579,0.78004737,103920.0,103910.0,0.21520621]
[1734510605974,0.66550823,103920.0,103910.0,0.21520621]
[1734510606294,0.61885787,103920.0,103910.0,0.21470621]
[1734510606665,0.66550823,103920.0,103910.0,0.21470621]
[1734510606870,0.61885787,103920.0,103910.0,0.21470621]
[1734510607070,0.66550823,103920.0,103910.0,0.17260165]
[1734510607277,0.66550823,103920.0,103910.0,0.17310165]
[1734510607483,0.66550823,103920.0,103910.0,0.21520621]
[1734510608271,0.66550823,103920.0,103910.0,0.21470621]
[1734510608865,0.78004737,103920.0,103910.0,0.04210456]
[1734510609174,0.78004737,103920.0,103910.0,0.0005]
[1734510609874,0.78004737,103920.0,103910.0,0.17310165]
[1734510610281,0.78004737,103920.0,103900.0,0.33053852]
[1734510610282,0.78004737,103920.0,103900.0,0.50314017]
[1734510610580,0.78004737,103920.0,103900.0,0.54524473]
[1734510610581,0.45557436,103910.0,103900.0,0.54524473]
[1734510610789,0.53237436,103910.0,103900.0,0.54524473]
[1734510611349,0.53237436,103910.0,103900.0,2.04524473]
[1734510611477,0.532442,103910.0,103900.0,0.37264308]
[1734510611675,0.61833051,103910.0,103900.0,0.33053852]
[1734510611877,0.66498087,103910.0,103900.0,0.27271851]
[1734510612067,0.66498087,103910.0,103900.0,0.14221206]
[1734510612274,0.66498087,103910.0,103900.0,0.1001075]
[1734510612275,0.73868087,103910.0,103900.0,0.1001075]
[1734510613166,0.69203051,103910.0,103900.0,0.1001075]
[1734510614075,0.64538015,103910.0,103900.0,0.1001075]
[1734510614293,0.33123051,103910.0,103900.0,0.1001075]
[1734510614499,0.171642,103910.0,103900.0,0.1001075]
[1734510614980,0.07686764,103910.0,103900.0,0.19488586]
[1734510615283,6.764e-05,103910.0,103900.0,0.41414723]
[1734510615480,6.764e-05,103910.0,103900.0,0.44339687]
[1734510615873,0.046718,103910.0,103900.0,0.44339687]
[1734510616074,6.764e-05,103910.0,103900.0,0.48550143]
[1734510617599,6.764e-05,103910.0,103900.0,1.98550143]
[1734510617972,6.764e-05,103910.0,103900.0,1.93885107]
[1734510619286,0.04819164,103910.0,103900.0,1.93885107]
[1734510620074,6.764e-05,103910.0,103900.0,1.93885107]
[1734510620275,6.764e-05,103910.0,103900.0,1.89724651]
[1734510621991,0.04819164,103910.0,103900.0,1.89724651]
[1734510622288,0.04819164,103910.0,103900.0,2.12767753]
[1734510623104,0.11932463,103910.0,103900.0,0.57954953]
[1734510623584,0.11932463,103910.0,103900.0,2.07954953]
[1734510624181,0.11932463,103910.0,103900.0,0.50364953]
[1734510624387,0.27232463,103910.0,103900.0,0.50364953]
[1734510624583,0.27232463,103910.0,103900.0,0.27321851]
[1734510624988,0.27232463,103910.0,103900.0,0.31532307]
[1734510627385,0.35821314,103910.0,103900.0,0.54575409]
[1734510627784,0.35821314,103910.0,103900.0,0.31532307]
[1734510628398,0.83355228,103910.0,103900.0,0.31532307]
[1734510629184,0.83355228,103910.0,103900.0,0.31482307]
[1734510629388,0.83355228,103910.0,103900.0,0.54525409]
[1734510631491,0.74766377,103910.0,103900.0,0.54525409]
[1734510632094,0.89122374,103910.0,103900.0,0.54525409]
[1734510637488,0.7766846,103910.0,103900.0,0.54525409]
[1734510638984,0.79610114,103910.0,103900.0,0.54525409]
[1734510639582,0.79610114,103910.0,103900.0,0.2350576]
[1734510639788,1.0487525,103910.0,103900.0,0.2350576]
[1734510640071,1.07104139,103910.0,103900.0,0.2350576]
[1734510640695,0.89819003,103910.0,103900.0,0.2350576]
[1734510641491,1.07104139,103910.0,103900.0,0.2350576]
[1734510642192,0.92748142,103910.0,103900.0,0.10456075]
[1734510642587,0.92748142,103910.0,103900.0,0.06244659]
[1734510643294,1.07083739,103910.0,103900.0,0.02419509]
[1734510643696,0.89798603,103910.0,103900.0,0.1968061]
[1734510644695,0.85127509,103910.0,103900.0,0.1968061]
[1734510645007,0.89798603,103910.0,103900.0,0.02419509]
[1734510645201,0.89798603,103910.0,103900.0,0.06630867]
[1734510645492,0.80456415,103910.0,103900.0,0.02419509]
[1734510645688,0.88615237,103910.0,103900.0,0.23891901]
[1734510646388,0.88615237,103910.0,103900.0,1.73891901]
[1734510646612,0.88615237,103910.0,103900.0,0.23891901]
[1734510647489,0.63832588,103910.0,103900.0,0.24351704]
[1734510647690,0.54168085,103910.0,103900.0,0.59116097]
[1734510647888,0.6277009,103910.0,103900.0,0.41854996]
[1734510648089,0.6277009,103910.0,103900.0,0.5447689]
[1734510648291,0.62911396,103910.0,103900.0,0.5447689]
[1734510648492,0.6758249,103910.0,103900.0,0.37183902]
[1734510649208,0.58980485,103910.0,103900.0,0.37183902]
[1734510650190,0.22900485,103910.0,103900.0,0.37183902]
[1734510650921,0.31505835,103910.0,103900.0,0.61778262]
[1734510651091,0.67585835,103910.0,103900.0,0.61778262]
[1734510651896,0.67585835,103910.0,103900.0,0.37183902]
[1734510652111,0.67585835,103910.0,103900.0,0.61778262]
[1734510653188,0.67585835,103910.0,103900.0,0.58479553]
[1734510653492,0.58980485,103910.0,103900.0,0.29673902]
[1734510653900,0.66490485,103910.0,103900.0,0.29673902]
[1734510654123,0.93487176,103910.0,103900.0,0.46973532]
[1734510654291,0.82018603,103910.0,103900.0,0.4697555]
[1734510654489,0.77347509,103910.0,103900.0,0.4697555]
[1734510655103,0.93494219,103910.0,103900.0,0.4697555]
[1734510656094,0.82018603,103910.0,103900.0,0.4697555]
[1734510656512,0.77347509,103910.0,103900.0,0.4697555]
[1734510657293,0.77347509,103910.0,103900.0,0.42811457]
[1734510660506,0.61847509,103910.0,103900.0,0.42811457]
[1734510660902,0.61847509,103910.0,103900.0,0.50891457]
[1734510661395,0.61847509,103910.0,103900.0,0.46680166]
[1734510661592,0.61847509,103910.0,103900.0,0.21298518]
[1734510661593,0.66518603,103910.0,103900.0,0.21298518]
[1734510661794,0.81338603,103910.0,103900.0,0.21298518]
[1734510662005,0.76667509,103910.0,103900.0,0.21298518]
[1734510662300,0.81338603,103910.0,103900.0,0.21298518]
[1734510662499,0.76667509,103910.0,103900.0,0.21298518]
[1734510662899,0.81338603,103910.0,103900.0,0.21298518]
[1734510663809,0.76667509,103910.0,103900.0,0.21298518]
[1734510664112,0.7911303,103910.0,103900.0,0.21298518]
[1734510665725,1.1467703,103910.0,103900.0,0.21298518]
[1734510667011,1.1467703,103910.0,103900.0,0.38603059]
[1734510667596,1.4467703,103910.0,103900.0,0.10445941]
[1734510667802,0.04813,103900.0,103890.0,0.12605922]
[1734510668006,0.65228954,103900.0,103890.0,0.12605922]
[1734510668209,0.66672955,103900.0,103890.0,0.12605922]
[1734510668405,0.65228954,103900.0,103890.0,0.01547983]
[1734510668610,0.66672955,103900.0,103890.0,0.0005]
[1734510669306,0.048138,103880.0,103870.0,0.40832347]
[1734510669514,0.1341909,103880.0,103870.0,0.40832347]
[1734510670013,0.2489281,103880.0,103870.0,0.40832347]
[1734510670219,0.20535705,103880.0,103870.0,0.40832347]
[1734510670405,0.20535705,103880.0,103870.0,0.41032347]
[1734510670604,0.20535705,103880.0,103870.0,0.41132347]
[1734510670820,0.20535705,103880.0,103870.0,0.12326696]
[1734510671007,0.32009425,103880.0,103870.0,0.12326696]
[1734510671404,0.20535705,103880.0,103870.0,0.08114788]
[1734510671910,0.20535705,103880.0,103870.0,0.08014788]
[1734510672312,0.20535705,103880.0,103870.0,0.12226696]
[1734510672508,0.20535705,103880.0,103870.0,0.08014788]
[1734510672917,0.20535705,103880.0,103870.0,0.12226696]
[1734510673416,0.56615705,103880.0,103870.0,0.12226696]
[1734510673605,0.56615705,103880.0,103870.0,0.12026696]
[1734510674006,0.68089425,103880.0,103870.0,0.12026696]
[1734510674316,0.56615705,103880.0,103870.0,0.12026696]
[1734510674623,0.68089425,103880.0,103870.0,0.12026696]
[1734510675002,0.69163296,103880.0,103870.0,0.12026696]
[1734510675617,0.69163296,103880.0,103870.0,0.07814788]
[1734510677304,0.69170478,103880.0,103870.0,0.04366696]
[1734510677808,0.60565188,103880.0,103870.0,0.00154788]
[1734510678220,0.60565188,103880.0,103870.0,0.00010405]
[1734510678405,0.60565188,103880.0,103870.0,0.04222313]
[1734510679005,0.60565188,103880.0,103870.0,0.00010405]
[1734510679418,0.69153499,103880.0,103870.0,0.00060405]
[1734510680104,0.62036884,103880.0,103870.0,0.00060405]
[1734510680340,0.62036884,103880.0,103870.0,0.07560405]
[1734510680522,0.62036884,103880.0,103870.0,0.11772977]
[1734510680819,0.62036884,103880.0,103870.0,0.07560405]
[1734510681219,0.50563164,103880.0,103870.0,0.07560405]
[1734510681722,0.50563164,103880.0,103870.0,1.61772842]
[1734510681918,0.57679779,103880.0,103870.0,1.57560405]
[1734510683012,0.49091468,103880.0,103870.0,1.61772842]
[1734510683315,0.51019633,103880.0,103870.0,1.61772842]
[1734510684023,0.51019633,103880.0,103870.0,0.11772842]
[1734510684215,0.59607944,103880.0,103870.0,0.11772842]
[1734510684722,0.59607944,103880.0,103870.0,0.07560405]
[1734510684909,0.59607944,103880.0,103870.0,0.11772842]
[1734510685317,0.52491329,103880.0,103870.0,0.11772842]
[1734510685819,0.52491329,103880.0,103870.0,0.07560405]
[1734510686693,0.52491329,103880.0,103870.0,0.11772842]
[1734510686916,0.03009218,103880.0,103870.0,0.11772842]
[1734510687121,0.03009218,103880.0,103870.0,0.59783657]
[1734510687723,0.03009218,103880.0,103870.0,0.88589308]
[1734510688016,0.01081053,103880.0,103870.0,0.88589308]
[1734510688814,7.182e-05,103880.0,103870.0,0.88589308]
[1734510690521,7.182e-05,103880.0,103870.0,2.38589308]
[1734510690822,0.04820982,103880.0,103870.0,2.38589308]
[1734510691419,0.04820982,103880.0,103870.0,2.34376871]
[1734510691629,0.04820982,103880.0,103870.0,2.27260256]
[1734510692220,0.13409293,103880.0,103870.0,2.27260256]
[1734510692416,0.13409293,103880.0,103870.0,2.22396056]
[1734510692616,0.04820982,103880.0,103870.0,0.40528493]
[1734510693129,0.04820982,103880.0,103870.0,1.90528493]
[1734510695935,0.13409293,103880.0,103870.0,1.90528493]
[1734510696116,0.08595493,103880.0,103870.0,2.33725108]
[1734510696322,7.182e-05,103880.0,103870.0,2.38539308]
[1734510697035,7.182e-05,103880.0,103870.0,2.73108293]
[1734510697216,7.182e-05,103880.0,103870.0,2.44302642]
[1734510697721,7.182e-05,103880.0,103870.0,2.73127726]
[1734510698540,7.182e-05,103880.0,103870.0,2.44302642]
[1734510698833,0.08638311,103890.0,103870.0,1.20090205]
[1734510699020,0.08638311,103890.0,103880.0,0.76830584]
[1734510699222,0.08638311,103890.0,103880.0,2.41980584]
[1734510699527,0.13401411,103900.0,103890.0,0.048133]
[1734510699836,0.13401411,103900.0,103890.0,0.23882352]
[1734510699837,0.13408714,103900.0,103890.0,0.23882352]
[1734510701129,0.13408714,103900.0,103890.0,0.16765737]
[1734510701626,0.13408714,103900.0,103890.0,0.23882352]
[1734510702224,0.04820403,103900.0,103890.0,0.23882352]
[1734510703031,7.303e-05,103900.0,103890.0,0.23882352]
[1734510704324,7.303e-05,103900.0,103890.0,0.19669915]
[1734510704732,7.303e-05,103900.0,103890.0,1.69669915]
[1734510705055,0.04820103,103900.0,103890.0,1.73882352]
[1734510705324,0.04870103,103900.0,103890.0,1.73882352]
[1734510705832,0.00057303,103900.0,103890.0,1.73882352]
[1734510706132,0.00057303,103900.0,103890.0,1.69669915]
[1734510706427,7.303e-05,103900.0,103890.0,1.69669915]
[1734510707329,0.00057303,103900.0,103890.0,1.69669915]
[1734510708437,7.303e-05,103900.0,103890.0,1.69669915]
[1734510709434,0.00057303,103900.0,103890.0,2.1286653]
[1734510709636,0.34270771,103920.0,103890.0,1.25890453]
[1734510709937,0.13400411,103920.0,103910.0,0.11929015]
[1734510710123,0.13400411,103920.0,103910.0,1.61929015]
[1734510710737,0.13411953,103920.0,103910.0,1.61929015]
[1734510710929,0.08599853,103920.0,103910.0,1.61929015]
[1734510711346,0.00011542,103920.0,103910.0,1.61929015]
[1734510712330,0.00011542,103920.0,103910.0,1.98009015]
[1734510712535,0.00011542,103920.0,103910.0,2.02221452]
[1734510712732,0.00011542,103920.0,103910.0,2.56820501]
[1734510712938,0.00011542,103920.0,103910.0,2.64910501]
[1734510715135,0.00011542,103920.0,103910.0,1.15959697]
[1734510715737,0.00011542,103920.0,103910.0,2.65959697]
[1734510716440,0.00011542,103920.0,103910.0,2.35959697]
[1734510716643,0.00011542,103920.0,103910.0,2.65959697]
[1734510719441,0.25922553,103940.0,103910.0,2.65959697]
[1734510719646,0.25922553,103940.0,103930.0,0.11928015]
[1734510720454,0.25929597,103940.0,103930.0,0.11928015]
[1734510721137,0.25929597,103940.0,103930.0,0.048114]
[1734510721733,0.048119,103920.0,103910.0,0.489819]
[1734510722045,0.048119,103920.0,103910.0,0.408919]
[1734510722435,0.127219,103920.0,103910.0,0.408919]
[1734510723446,0.126719,103920.0,103910.0,0.408919]
[1734510724157,0.048123,103910.0,103900.0,0.48847055]
[1734510724449,0.048123,103910.0,103900.0,0.41037055]
[1734510724450,0.122323,103910.0,103900.0,0.41037055]
[1734510725247,0.122323,103910.0,103900.0,0.36224355]
[1734510725945,0.19348915,103910.0,103900.0,0.36224355]
[1734510726743,0.122323,103910.0,103900.0,0.36224355]
[1734510727547,0.122323,103910.0,103900.0,0.04356792]
[1734510727743,0.122323,103910.0,103900.0,0.00144355]
[1734510728448,0.20820611,103910.0,103900.0,0.00144355]
[1734510729174,0.56900611,103910.0,103900.0,0.00144355]
[1734510730252,0.64017226,103910.0,103900.0,0.00144355]
[1734510731847,0.56900611,103910.0,103900.0,0.00144355]
[1734510732251,0.64017226,103910.0,103900.0,0.00144355]
[1734510732452,0.048128,103900.0,103890.0,0.27217407]
[1734510732650,0.55699415,103900.0,103890.0,0.04212437]
[1734510732954,0.485828,103900.0,103890.0,0.04212437]
[1734510733358,0.485828,103900.0,103890.0,0.04262437]
[1734510733555,0.125028,103900.0,103890.0,0.04262437]
[1734510734457,0.125028,103900.0,103890.0,0.04212437]
[1734510735358,0.125028,103900.0,103890.0,0.04262437]
[1734510735549,0.125028,103900.0,103890.0,0.0005]
[1734510736352,0.0769,103900.0,103890.0,0.11929715]
[1734510736755,0.0769,103900.0,103890.0,0.16142152]
[1734510737064,0.0769,103900.0,103890.0,0.39147122]
[1734510737558,0.0769,103900.0,103890.0,0.391994]
[1734510737859,0.0769,103900.0,103890.0,0.16192152]
[1734510738450,0.125028,103900.0,103890.0,1.5]
[1734510738853,0.125028,103900.0,103890.0,1.73006815]
[1734510739053,0.55708609,103900.0,103890.0,0.23006815]
[1734510739263,0.048133,103890.0,103880.0,0.04211419]
[1734510739459,0.19349915,103890.0,103880.0,0.04211419]
[1734510739667,0.122333,103890.0,103880.0,1.54211419]
[1734510740251,0.122333,103890.0,103880.0,0.04211419]
[1734510740463,0.483133,103890.0,103880.0,0.04211419]
[1734510740854,0.483133,103890.0,103870.0,2.55024325]
[1734510741062,0.483133,103890.0,103870.0,2.26212839]
[1734510741253,0.483133,103890.0,103870.0,2.33329454]
[1734510741558,0.0742,103890.0,103880.0,0.048138]
[1734510742062,0.0742,103890.0,103880.0,0.126438]
[1734510742258,0.48592394,103900.0,103880.0,0.19760415]
[1734510742459,0.48592394,103900.0,103890.0,0.0005]
[1734510742857,0.4964357,103900.0,103890.0,0.0005]
[1734510743463,0.0875037,103900.0,103890.0,0.048633]
[1734510744062,0.0875037,103900.0,103890.0,0.52271334]
[1734510744063,9.194e-05,103900.0,103890.0,0.52271334]
[1734510744256,9.194e-05,103900.0,103890.0,0.60091334]
[1734510744761,9.194e-05,103900.0,103890.0,0.52974719]
[1734510744959,9.194e-05,103900.0,103890.0,0.68151334]
[1734510745155,9.194e-05,103900.0,103890.0,0.63939915]
[1734510745559,9.194e-05,103900.0,103890.0,0.9696282]
[1734510745962,9.194e-05,103900.0,103890.0,1.04079435]
[1734510746269,0.21584214,103930.0,103920.0,0.048117]
[1734510746474,0.14939409,103930.0,103920.0,0.048117]
[1734510746758,0.00144403,103930.0,103920.0,0.122417]
[1734510747161,0.0496302,103930.0,103920.0,0.122417]
[1734510747557,0.0015152,103930.0,103920.0,0.27078315]
[1734510750157,7.117e-05,103930.0,103920.0,0.63158315]
[1734510750361,7.117e-05,103930.0,103920.0,0.67369734]
[1734510750668,7.117e-05,103930.0,103920.0,0.63158315]
[1734510751160,7.117e-05,103930.0,103920.0,0.91902691]
[1734510751672,7.117e-05,103930.0,103920.0,0.9611411]
[1734510751860,7.117e-05,103930.0,103920.0,2.4611411]
[1734510752396,7.117e-05,103930.0,103920.0,2.41902691]
[1734510753461,7.117e-05,103930.0,103920.0,2.13158315]
[1734510755157,0.04818617,103930.0,103920.0,2.13158315]
[1734510755354,0.11985232,103930.0,103920.0,0.0743]
[1734510755561,0.11985232,103930.0,103910.0,0.53203719]
[1734510755562,0.048119,103920.0,103910.0,0.53203719]
[1734510755761,0.11928515,103920.0,103910.0,0.3608]
[1734510755959,0.19498515,103920.0,103910.0,0.3608]
[1734510756776,0.55578515,103920.0,103900.0,0.482627]
[1734510756968,0.19498515,103920.0,103900.0,1.982627]
[1734510757671,0.55578515,103920.0,103900.0,1.982627]
[1734510758255,0.55578515,103920.0,103900.0,2.02474119]
[1734510758470,0.55578515,103920.0,103900.0,1.982627]
[1734510758972,0.123819,103920.0,103910.0,0.048124]
[1734510759665,0.0757,103920.0,103910.0,0.048124]
[1734510760370,0.123819,103920.0,103910.0,0.048124]
[1734510765773,0.19498515,103920.0,103910.0,0.048124]
[1734510765972,0.55578515,103920.0,103900.0,1.983126]
[1734510766171,0.19498515,103920.0,103900.0,1.983126]
[1734510766368,0.55578515,103920.0,103900.0,1.982626]
[1734510766754,0.19498515,103920.0,103900.0,1.982626]
[1734510767474,0.19498515,103920.0,103900.0,1.983126]
[1734510767673,0.11929015,103910.0,103900.0,1.5005]
[1734510767873,0.19249015,103910.0,103900.0,1.5005]
[1734510768072,0.19249015,103910.0,103900.0,0.0005]
[1734510768471,0.19249015,103910.0,103890.0,0.64028582]
[1734510768714,0.19249015,103910.0,103890.0,2.14028582]
[1734510769581,0.19249015,103910.0,103900.0,0.0005]
[1734510770773,0.27837326,103910.0,103900.0,0.0005]
[1734510772278,0.28862183,103910.0,103900.0,0.0005]
[1734510774369,0.76415903,103910.0,103900.0,0.0005]
[1734510775193,0.82169743,103910.0,103900.0,0.0005]
[1734510775385,1.12169743,103910.0,103890.0,0.04211419]
[1734510775683,0.048133,103890.0,103880.0,0.59071022]
[1734510775881,0.48009915,103890.0,103870.0,2.06612003]
[1734510776177,0.56099915,103890.0,103870.0,1.77815627]
[1734510776383,0.56099915,103890.0,103870.0,1.73001427]
[1734510776685,0.56099915,103890.0,103870.0,0.23001427]
[1734510777086,0.64676844,103890.0,103870.0,1.73001427]
[1734510777278,0.56099915,103890.0,103870.0,1.73001427]
[1734510777676,0.56099915,103890.0,103870.0,1.50010405]
[1734510778088,0.56099915,103890.0,103870.0,1.73001427]
[1734510778377,0.56099915,103890.0,103870.0,1.50010405]
[1734510780079,0.56099915,103890.0,103870.0,1.54824605]
[1734510780807,0.57102816,103890.0,103870.0,1.54824605]
[1734510780977,0.57102816,103890.0,103870.0,0.04824605]
[1734510781887,0.61916516,103890.0,103870.0,0.04824605]
[1734510782084,0.11930415,103880.0,103870.0,0.00010405]
[1734510782491,0.19820415,103880.0,103870.0,0.00010405]
[1734510784493,0.19820415,103880.0,103870.0,0.00060405]
[1734510784782,0.127038,103880.0,103870.0,0.00060405]
[1734510784996,0.49986301,103890.0,103870.0,0.1199112]
[1734510785178,0.49986301,103890.0,103870.0,0.2727112]
[1734510785786,0.37082901,103890.0,103880.0,0.11930415]
[1734510785987,0.3608,103890.0,103880.0,0.2417226]
[1734510786615,0.3608,103890.0,103880.0,0.17055645]
[1734510787000,0.3608,103890.0,103880.0,0.2417226]
[1734510787394,0.23298699,103900.0,103880.0,0.79031437]
[1734510787591,0.0675177,103900.0,103880.0,0.79031437]
[1734510787793,8.445e-05,103900.0,103890.0,0.048133]
[1734510788089,8.445e-05,103900.0,103890.0,0.1614176]
[1734510788689,8.445e-05,103900.0,103890.0,0.39132782]
[1734510789483,8.445e-05,103900.0,103890.0,0.75212782]
[1734510789891,8.445e-05,103900.0,103890.0,1.11073773]
[1734510790199,8.445e-05,103900.0,103890.0,0.80966136]
[1734510790396,8.445e-05,103900.0,103890.0,2.30966136]
[1734510793098,8.445e-05,103900.0,103890.0,2.38396136]
[1734510797396,0.00058445,103900.0,103890.0,2.38396136]
[1734510798952,0.00058445,103900.0,103890.0,2.46456136]
[1734510801900,0.50478753,103920.0,103890.0,1.68141736]
[1734510802117,0.68412249,103930.0,103920.0,0.048119]
[1734510802303,0.63600649,103930.0,103920.0,0.11928515]
[1734510802606,0.56130649,103930.0,103920.0,1.69468515]
[1734510802904,0.5613862,103930.0,103920.0,1.69468515]
[1734510803110,0.2005862,103930.0,103920.0,2.05548515]
[1734510804903,7.971e-05,103930.0,103920.0,2.05548515]
[1734510805495,7.971e-05,103930.0,103920.0,2.1266513]
[1734510806100,7.971e-05,103930.0,103920.0,2.05548515]
[1734510807315,7.971e-05,103930.0,103920.0,2.1266513]
[1734510807607,7.971e-05,103930.0,103920.0,0.55548515]
[1734510807999,7.971e-05,103930.0,103920.0,2.05548515]
[1734510808212,7.971e-05,103930.0,103920.0,2.06581172]
[1734510810102,0.04819371,103930.0,103920.0,1.9362]
[1734510810304,0.04819371,103930.0,103920.0,0.3608]
[1734510810806,0.048119,103920.0,103910.0,2.83704364]
[1734510811616,0.04819471,103930.0,103920.0,0.048119]
[1734510811807,7.971e-05,103930.0,103920.0,0.48008515]
[1734510812216,0.04819371,103930.0,103920.0,0.48008515]
[1734510812717,7.971e-05,103930.0,103920.0,0.5512513]
[1734510814209,0.04819371,103930.0,103920.0,0.5512513]
[1734510814511,0.04869371,103930.0,103920.0,0.48008515]
[1734510817703,0.04869371,103930.0,103920.0,0.408919]
[1734510817979,0.04869371,103930.0,103920.0,0.48008515]
[1734510818216,0.04869371,103930.0,103920.0,0.76743261]
[1734510818807,0.04869371,103930.0,103920.0,0.48008515]
[1734510819408,0.04869371,103930.0,103920.0,0.408919]
[1734510819612,0.12539371,103930.0,103920.0,0.45103745]
[1734510820121,0.12539371,103930.0,103920.0,1.95103745]
[1734510820918,0.12539371,103930.0,103920.0,1.908919]
[1734510822510,0.12539371,103930.0,103920.0,1.95103745]
[1734510825322,0.12539371,103930.0,103920.0,1.908919]
[1734510826820,0.13531048,103930.0,103920.0,1.908919]
[1734510827413,0.13531048,103930.0,103920.0,2.19626646]
[1734510827612,0.13531048,103930.0,103920.0,2.23838491]
[1734510827815,0.12539371,103930.0,103920.0,2.30955106]
[1734510828522,0.12489371,103930.0,103920.0,2.30955106]
[1734510830320,0.21058322,103930.0,103920.0,2.30955106]
[1734510831421,0.16246922,103930.0,103920.0,2.65398078]
[1734510833229,0.08576922,103930.0,103920.0,2.65398078]
[1734510833427,0.08576922,103930.0,103920.0,0.93779947]
[1734510833634,0.2004422,103940.0,103920.0,0.6256513]
[1734510833834,0.0005,103940.0,103930.0,0.98021309]
[1734510834032,0.1999422,103950.0,103940.0,0.04811]
[1734510834033,0.08568951,103950.0,103940.0,0.04811]
[1734510834238,0.1999422,103960.0,103940.0,0.97162759]
[1734510834418,0.08568951,103960.0,103950.0,0.97632259]
[1734510834623,0.00011038,103960.0,103950.0,0.97642387]
[1734510835126,0.00011038,103960.0,103950.0,0.90525772]
[1734510836540,0.00011038,103960.0,103950.0,0.55927243]
[1734510837238,0.00011038,103960.0,103950.0,0.90525772]
[1734510837534,0.00011038,103960.0,103950.0,0.55927243]
[1734510838629,0.058096,103970.0,103960.0,0.048101]
[1734510838630,0.01,103970.0,103960.0,0.048101]
[1734510838935,0.01,103970.0,103960.0,0.48006715]
[1734510839429,0.01,103970.0,103960.0,1.98006715]
[1734510839629,0.01009439,103970.0,103960.0,1.98006715]
[1734510841830,0.01009439,103970.0,103960.0,2.05986715]
[1734510844344,0.76066798,104000.0,103990.0,0.048087]
[1734510845244,0.7607728,104000.0,103990.0,0.048087]
[1734510845436,0.7607728,104000.0,103990.0,1.548087]
[1734510845635,0.7607728,104000.0,103990.0,1.55109214]
[1734510846552,0.7126888,104000.0,103990.0,1.55109214]
[1734510846837,0.7126888,104000.0,103990.0,0.05109214]
[1734510847343,0.62699929,104000.0,103990.0,1.55109214]
[1734510847649,0.62699929,104000.0,103990.0,0.05109214]
[1734510848739,0.62699929,104000.0,103990.0,0.048087]
[1734510849559,0.62699929,104000.0,103990.0,0.05109216]
[1734510851755,0.62699929,104000.0,103990.0,0.048087]
[1734510852259,0.62699929,104000.0,103990.0,0.05109216]
[1734510854358,0.74624744,104000.0,103990.0,0.05109216]
[1734510854653,0.7607708,104000.0,103990.0,0.048087]
[1734510854862,0.7126888,104000.0,103990.0,0.048087]
[1734510855063,0.62699929,104000.0,103990.0,0.11925315]
[1734510855759,0.62699929,104000.0,103990.0,0.048087]
[1734510856561,0.7607708,104000.0,103990.0,0.048087]
[1734510858397,0.82694149,104000.0,103990.0,0.048087]
[1734510858566,0.7126888,104000.0,103990.0,0.048087]
[1734510858859,0.7126888,104000.0,103990.0,0.11925315]
[1734510859548,0.7131888,104000.0,103990.0,0.12225827]
[1734510860461,0.7131888,104000.0,103990.0,0.48305827]
[1734510860462,0.34237444,104000.0,103990.0,0.48305827]
[1734510860658,0.10060482,104000.0,103990.0,0.48305827]
[1734510860852,0.10060482,104000.0,103990.0,0.55775827]
[1734510861059,0.10060482,104000.0,103990.0,2.05775827]
[1734510861366,0.10060482,104000.0,103990.0,2.05475315]
[1734510861657,0.10060482,104000.0,103990.0,2.05775791]
[1734510862459,0.18637444,104000.0,103990.0,2.05775791]
[1734510862653,0.18637444,104000.0,103990.0,2.05475315]
[1734510863456,0.30062713,104000.0,103990.0,2.05475315]
[1734510864365,0.30062713,104000.0,103990.0,2.06377321]
[1734510864604,0.18637444,104000.0,103990.0,2.06377321]
[1734510865560,0.18637444,104000.0,103990.0,2.05775785]
[1734510865863,0.30062713,104000.0,103990.0,2.05775785]
[1734510866259,0.18637444,104000.0,103990.0,2.05775785]
[1734510866559,0.30062713,104000.0,103990.0,2.06746036]
[1734510867872,0.30062713,104000.0,103990.0,2.06445566]
[1734510868566,0.30012713,104000.0,103990.0,2.06445566]
[1734510868766,0.30012713,104000.0,103990.0,2.06746037]
[1734510873763,0.30012713,104000.0,103990.0,2.06445566]
[1734510874076,0.30012713,104000.0,103990.0,1.91858951]
[1734510874465,0.37502713,104000.0,103990.0,1.91858951]
[1734510875167,0.37502713,104000.0,103990.0,1.92760957]
[1734510876074,0.37502713,104000.0,103990.0,1.91858951]
[1734510876680,0.28925751,104000.0,103990.0,1.92159426]
[1734510877564,0.37532566,104000.0,103990.0,1.99276041]
[1734510878377,0.11475269,104010.0,104000.0,0.048082]
[1734510878677,0.29381586,104020.0,104010.0,0.048078]
[1734510878880,0.29381586,104020.0,104010.0,0.1222489]
[1734510879177,0.29381586,104020.0,104010.0,1.6222489]
[1734510879375,0.29381586,104020.0,104010.0,1.9830489]
[1734510879376,0.14293495,104020.0,104010.0,1.9830489]
[1734510879674,0.14293495,104020.0,104010.0,2.05421505]
[1734510879675,0.00011909,104020.0,104010.0,2.05421505]
[1734510879878,0.00011909,104020.0,104010.0,1.99206896]
[1734510880172,0.00011909,104020.0,104010.0,2.05421505]
[1734510880386,0.00011909,104020.0,104010.0,1.98004415]
[1734510880676,0.00011909,104020.0,104010.0,2.0632345]
[1734510880868,0.00011909,104020.0,104010.0,1.98906421]
[1734510881071,0.00011909,104020.0,104010.0,2.06323445]
[1734510881866,0.00011909,104020.0,104010.0,2.05421439]
[1734510882875,0.00011909,104020.0,104010.0,2.06323445]
[1734510883177,0.00011909,104020.0,104010.0,1.9920683]
[1734510883584,0.00011909,104020.0,104010.0,1.99310079]
[1734510885685,0.00061909,104020.0,104010.0,1.99310079]
[1734510886583,0.00011909,104020.0,104010.0,1.99310079]
[1734510887677,0.00061909,104020.0,104010.0,1.99310079]
[1734510888578,0.00011909,104020.0,104010.0,1.99310079]
[1734510889589,0.00061909,104020.0,104010.0,1.99310079]
[1734510890118,0.00061909,104020.0,104010.0,1.99310074]
[1734510890775,0.00061909,104020.0,104010.0,1.9900967]
[1734510891381,0.00061909,104020.0,104010.0,1.91893055]
[1734510891585,0.04869209,104020.0,104010.0,1.91893055]
[1734510891788,0.20239209,104020.0,104010.0,0.41893055]
[1734510892285,0.27355824,104020.0,104010.0,1.91893055]
[1734510892878,0.20239209,104020.0,104010.0,1.548078]
[1734510893087,0.56319209,104020.0,104010.0,1.548078]
[1734510896181,0.15431909,104020.0,104010.0,1.908878]
[1734510896389,0.15431909,104020.0,104010.0,1.548078]
[1734510897184,0.51511909,104020.0,104010.0,1.548078]